fUSD/lending_fUSD_20260305
["ID","MTS","AMOUNT","RATE_DAILY","PERIOD"]
[407715304,1772699456485,-151.0,0.00046,120]
[407715305,1772699456502,-151.0,0.00046,120]
[407715306,1772699456520,-151.0,0.00046,120]
[407715307,1772699456535,-151.0,0.00046,120]
[407715308,1772699456553,-151.0,0.00046,120]
[407715309,1772699456565,-153.510087,0.00046,120]
[407715310,1772699456584,-151.0,0.00046,120]
[407715311,1772699456598,-151.0,0.00046,120]
[407715312,1772699456614,-292.964509,0.00046,120]
[407715313,1772699456630,-292.964509,0.00046,120]
[407715314,1772699456644,-292.964509,0.00046,120]
[407715315,1772699456659,-292.964509,0.00046,120]
[407715316,1772699456673,-151.0,0.00046,120]
[407715317,1772699456688,-178.14104,0.00046,120]
[407715318,1772699456703,-151.0,0.00046,120]
[407715319,1772699456718,-178.14104,0.00046,120]
[407715320,1772699456733,-178.14104,0.00046,120]
[407715321,1772699456747,-178.14104,0.00046,120]
[407715322,1772699456763,-176.284498,0.00046,120]
[407715323,1772699456778,-151.0,0.00046,120]
[407715324,1772699456793,-500.0,0.00046,120]
[407715325,1772699456807,-500.0,0.00046,120]
[407715326,1772699456823,-176.4237109,0.00046004,60]
[407715327,1772699456837,-1000.0,0.00046005,14]
[407715328,1772699456852,-150.0,0.00046009,14]
[407715329,1772699456867,-1000.0,0.00046012,14]
[407715330,1772699456885,-1000.0,0.00046016,14]
[407715331,1772699456900,-1000.0,0.00046026,14]
[407715332,1772699456920,-1000.0,0.00046027,14]
[407715333,1772699456935,-1000.0,0.00046029,14]
[407715334,1772699456949,-1000.0,0.00046031,14]
[407715335,1772699456964,-664.50819213,0.00046031,14]
[407715336,1772699456978,-150.0,0.00046035,14]
[407715337,1772699456993,-150.0,0.00046035,14]
[407715338,1772699457008,-160.0,0.00046036,16]
[407715339,1772699457023,-1000.0,0.00046039,14]
[407715340,1772699457037,-1000.0,0.00046043,14]
[407715341,1772699457051,-1000.0,0.00046043,14]
[407715342,1772699457065,-1000.0,0.00046043,14]
[407715343,1772699457080,-1000.0,0.00046048,14]
[407715344,1772699457095,-150.0,0.00046056,120]
[407715345,1772699457109,-160.13,0.00046061,120]
[407715346,1772699457123,-500.0,0.00046063,120]
[407715347,1772699457138,-288.93232633,0.00046063,120]
[407715348,1772699457152,-10965.0,0.00046064,60]
[407715349,1772699457166,-168.0,0.00046069,2]
[407715350,1772699457181,-150.0,0.00046078,14]
[407715351,1772699457195,-1000.0,0.00046085,14]
[407715352,1772699457208,-330.13062258,0.00046109,45]
[407715353,1772699457223,-150.0,0.00046118,14]
[407715354,1772699457239,-1000.0,0.00046123,14]
[407715355,1772699457253,-500.0,0.00046126,2]
[407715356,1772699457268,-1018.42883575,0.00046127,14]
[407715357,1772699457282,-1000.0,0.00046133,14]
[407715358,1772699457296,-151.0,0.00046143,10]
[407715359,1772699457311,-151.0,0.00046143,10]
[407715360,1772699457325,-151.0,0.00046143,10]
[407715361,1772699457340,-151.0,0.00046143,10]
[407715362,1772699457354,-151.0,0.00046143,10]
[407715363,1772699457368,-151.0,0.00046143,10]
[407715364,1772699457383,-151.0,0.00046143,10]
[407715365,1772699457398,-151.0,0.00046143,10]
[407715366,1772699457412,-151.0,0.00046143,10]
[407715367,1772699457427,-151.0,0.00046143,10]
[407715368,1772699457442,-151.0,0.00046143,10]
[407715369,1772699457457,-151.0,0.00046143,10]
[407715370,1772699457473,-151.0,0.00046143,10]
[407715371,1772699457489,-151.0,0.00046143,10]
[407715372,1772699457504,-151.0,0.00046143,10]
[407715373,1772699457517,-151.0,0.00046143,10]
[407715374,1772699457531,-151.0,0.00046143,10]
[407715375,1772699457546,-151.0,0.00046143,10]
[407715376,1772699457561,-151.0,0.00046143,10]
[407715377,1772699457577,-151.0,0.00046143,10]
[407715378,1772699457593,-151.0,0.00046143,10]
[407715379,1772699457608,-151.0,0.00046143,10]
[407715380,1772699457622,-151.0,0.00046143,10]
[407715381,1772699457637,-151.0,0.00046143,10]
[407715382,1772699457652,-151.0,0.00046143,10]
[407715383,1772699457666,-151.0,0.00046143,10]
[407715384,1772699457681,-151.0,0.00046143,10]
[407715385,1772699457695,-151.0,0.00046143,10]
[407715386,1772699457711,-151.0,0.00046143,10]
[407715387,1772699457725,-151.0,0.00046143,10]
[407715388,1772699457741,-151.0,0.00046143,10]
[407715389,1772699457756,-151.0,0.00046143,10]
[407715390,1772699457771,-151.0,0.00046143,10]
[407715391,1772699457786,-151.0,0.00046143,10]
[407715392,1772699457801,-151.0,0.00046143,10]
[407715393,1772699457817,-151.0,0.00046143,10]
[407715394,1772699457831,-151.0,0.00046143,10]
[407715395,1772699457847,-151.0,0.00046143,10]
[407715396,1772699457863,-151.0,0.00046143,10]
[407715397,1772699457879,-151.0,0.00046143,10]
[407715398,1772699457894,-151.0,0.00046143,10]
[407715399,1772699457909,-151.0,0.00046143,10]
[407715400,1772699457926,-151.0,0.00046143,10]
[407715401,1772699457941,-151.0,0.00046143,10]
[407715402,1772699457958,-151.0,0.00046143,10]
[407715403,1772699457973,-151.0,0.00046143,10]
[407715404,1772699457990,-151.0,0.00046143,10]
[407715405,1772699458004,-151.0,0.00046143,10]
[407715406,1772699458019,-151.0,0.00046143,10]
[407715407,1772699458033,-151.0,0.00046143,10]
[407715408,1772699458049,-151.0,0.00046143,10]
[407715409,1772699458063,-151.0,0.00046143,10]
[407715410,1772699458078,-151.0,0.00046143,10]
[407715411,1772699458087,-151.0,0.00046143,10]
[407715412,1772699458096,-151.0,0.00046143,10]
[407715413,1772699458105,-210.0,0.00046143,10]
[407715414,1772699458114,-150.0,0.00046143,10]
[407715415,1772699458124,-150.0,0.00046143,10]
[407715416,1772699458443,-150.0,0.00046143,10]
[407715417,1772699458468,-150.0,0.00046143,10]
[407715418,1772699458479,-150.0,0.00046143,10]
[407715419,1772699458489,-150.0,0.00046143,10]
[407715420,1772699458499,-150.0,0.00046143,10]
[407715421,1772699458508,-150.0,0.00046143,10]
[407715422,1772699458518,-150.0,0.00046143,10]
[407715423,1772699458528,-150.0,0.00046143,10]
[407715424,1772699458537,-150.0,0.00046143,10]
[407715425,1772699458547,-150.0,0.00046143,10]
[407715426,1772699458556,-150.0,0.00046143,10]
[407715427,1772699458565,-150.0,0.00046143,10]
[407715428,1772699458575,-150.0,0.00046143,10]
[407715429,1772699458584,-150.0,0.00046143,10]
[407715430,1772699458593,-150.0,0.00046143,10]
[407715431,1772699458603,-150.0,0.00046143,10]
[407715432,1772699458612,-150.0,0.00046143,10]
[407715433,1772699458621,-150.0,0.00046143,10]
[407715434,1772699458631,-273.0,0.00046143,10]
[407715435,1772699458640,-1000.0,0.00046144,30]
[407715436,1772699458649,-1000.0,0.00046149,14]
[407715437,1772699458659,-150.0,0.00046158,14]
[407715438,1772699458668,-160.13,0.00046161,120]
[407715439,1772699458678,-1000.0,0.00046162,14]
[407715440,1772699458688,-1000.0,0.00046174,14]
[407715441,1772699458698,-1000.0,0.00046176,14]
[407715442,1772699458708,-233.2157957,0.00046181,7]
[407715443,1772699458717,-182.741971,0.00046181,7]
[407715444,1772699458726,-4690.09237965,0.00046181,7]
[407715445,1772699458736,-162.0,0.00046182,21]
[407715446,1772699458746,-1000.0,0.00046182,14]
[407715447,1772699458755,-150.0,0.00046185,14]
[407715448,1772699458764,-250.21,0.000462,14]
[407715449,1772699458774,-500.0,0.00046203,120]
[407715450,1772699458783,-500.0,0.00046203,120]
[407715451,1772699458793,-177.14945896,0.00046203,120]
[407715452,1772699458802,-500.0,0.00046203,120]
[407715453,1772699458812,-1256.33,0.00046203,120]
[407715454,1772699458821,-150.0,0.00046206,14]
[407715455,1772699458830,-1000.0,0.00046211,14]
[407715456,1772699458840,-1000.0,0.00046229,14]
[407715457,1772699458849,-150.0,0.00046241,120]
[407715458,1772699458858,-1000.0,0.0004626,14]
[407715459,1772699458867,-160.13,0.00046261,120]
[407715460,1772699458878,-1000.0,0.0004627,14]
[407715461,1772699458889,-150.0,0.00046274,14]
[407715462,1772699458898,-150.0,0.00046288,14]
[407715463,1772699458908,-1000.0,0.00046289,14]
[407715464,1772699458918,-1000.0,0.0004629,14]
[407715465,1772699458927,-150.0,0.00046332,14]
[407715466,1772699458936,-1000.0,0.00046333,14]
[407715467,1772699458947,-1000.0,0.0004634,14]
[407715468,1772699458956,-160.0,0.00046346,16]
[407715469,1772699458966,-1000.0,0.00046347,14]
[407715470,1772699458975,-766.0,0.00046353,60]
[407715471,1772699458985,-1000.0,0.00046353,14]
[407715472,1772699458994,-1000.0,0.00046355,14]
[407715473,1772699459003,-500.0,0.00046359,60]
[407715474,1772699459012,-500.0,0.00046359,60]
[407715475,1772699459021,-989.0,0.00046359,60]
[407715476,1772699459030,-160.13,0.00046361,120]
[407715477,1772699459039,-245.37276384,0.00046366,30]
[407715478,1772699459047,-150.0,0.00046373,14]
[407715479,1772699459057,-1000.0,0.0004638,14]
[407715480,1772699459066,-1000.0,0.00046385,14]
[407715481,1772699459075,-744.60347974,0.00046388,30]
[407715482,1772699459085,-382.80636761,0.00046388,30]
[407715483,1772699459093,-446.76208785,0.00046388,30]
[407715484,1772699459102,-271.79252101,0.00046388,30]
[407715485,1772699459111,-201.48166812,0.000464,120]
[407715486,1772699459120,-556.15181827,0.000464,120]
[407715487,1772699459129,-1075.52236035,0.000464,120]
[407715488,1772699459138,-263.63061751,0.000464,120]
[407715489,1772699459147,-207.67046226,0.000464,120]
[407715490,1772699459157,-242.69211162,0.000464,120]
[407715491,1772699459166,-183.43894495,0.000464,120]
[407715492,1772699459175,-562.885697,0.000464,67]
[407715493,1772699459185,-1268.56888454,0.000464,120]
[407715494,1772699459194,-1000.0,0.000464,120]
[407715495,1772699459203,-1526.99127845,0.000464,120]
[407715496,1772699459212,-524.0504401,0.000464,120]
[407715497,1772699459222,-643.64543342,0.000464,120]
[407715498,1772699459233,-160.0,0.000464,120]
[407715499,1772699459242,-1000.0,0.00046409,14]
[407715500,1772699459251,-1000.0,0.00046418,30]
[407715501,1772699459260,-150.0,0.00046418,14]
[407715502,1772699459268,-150.0,0.00046421,14]
[407715503,1772699459277,-150.0,0.00046423,14]
[407715504,1772699459287,-230.0,0.00046424,21]
[407715505,1772699459296,-245.37276384,0.00046425,30]
[407715506,1772699459305,-245.37276384,0.00046425,30]
[407715507,1772699459314,-1000.0,0.00046427,120]
[407715508,1772699459323,-1526.99127846,0.00046427,120]
[407715509,1772699459332,-150.0,0.00046435,14]
[407715510,1772699459341,-150.0,0.00046443,14]
[407715511,1772699459350,-1000.0,0.00046457,14]
[407715512,1772699459359,-160.13,0.00046461,120]
[407715513,1772699459368,-1000.0,0.00046469,14]
[407715514,1772699459378,-150.0,0.00046471,14]
[407715515,1772699459387,-1000.0,0.00046474,14]
[407715516,1772699459396,-151.0,0.00046474,120]
[407715517,1772699459405,-153.961721,0.00046474,120]
[407715518,1772699459414,-369.518395,0.00046474,120]
[407715519,1772699459423,-369.518395,0.00046474,120]
[407715520,1772699459432,-369.518395,0.00046474,120]
[407715521,1772699459441,-369.518395,0.00046474,120]
[407715522,1772699459450,-152.031773,0.00046474,120]
[407715523,1772699459459,-151.0,0.00046474,120]
[407715524,1772699459468,-172.769391,0.00046474,120]
[407715525,1772699459478,-151.0,0.00046474,120]
[407715526,1772699459487,-172.769391,0.00046474,120]
[407715527,1772699459496,-172.769391,0.00046474,120]
[407715528,1772699459505,-153.98687,0.00046474,120]
[407715529,1772699459515,-172.769391,0.00046474,120]
[407715530,1772699459524,-151.0,0.00046474,120]
[407715531,1772699459533,-151.0,0.00046474,120]
[407715532,1772699459542,-151.0,0.00046474,120]
[407715533,1772699459551,-266.489507,0.00046474,120]
[407715534,1772699459559,-151.0,0.00046474,120]
[407715535,1772699459568,-525.17966754,0.00046475,120]
[407715536,1772699459577,-1158.4890981,0.00046475,15]
[407715537,1772699459586,-459.59439678,0.00046475,120]
[407715538,1772699459595,-4740.89154135,0.00046475,15]
[407715539,1772699459604,-287.37049951,0.00046475,28]
[407715540,1772699459613,-578.19217107,0.00046475,2]
[407715541,1772699459622,-541.7769363,0.00046475,120]
[407715542,1772699459631,-541.7769363,0.00046475,120]
[407715543,1772699459640,-541.7769363,0.00046475,120]
[407715544,1772699459649,-541.7769363,0.00046475,120]
[407715545,1772699459658,-541.7769363,0.00046475,120]
[407715546,1772699459667,-541.7769363,0.00046475,120]
[407715547,1772699459676,-541.7769363,0.00046475,120]
[407715548,1772699459685,-541.7769363,0.00046475,120]
[407715549,1772699459694,-541.7769363,0.00046475,120]
[407715550,1772699459703,-541.7769363,0.00046475,120]
[407715551,1772699459711,-541.7769363,0.00046475,120]
[407715552,1772699459720,-541.7769363,0.00046475,120]
[407715553,1772699459729,-541.7769363,0.00046475,120]
[407715554,1772699459739,-541.7769363,0.00046475,120]
[407715555,1772699459748,-541.7769363,0.00046475,120]
[407715556,1772699459758,-541.7769363,0.00046475,120]
[407715557,1772699459767,-541.7769363,0.00046475,120]
[407715558,1772699459776,-541.7769363,0.00046475,120]
[407715559,1772699459785,-541.7769363,0.00046475,120]
[407715560,1772699459795,-541.77,0.00046475,120]
[407715561,1772699459804,-194.2003743,0.00046475,120]
[407715562,1772699459813,-194.2003743,0.00046475,120]
[407715563,1772699459823,-194.2003743,0.00046475,120]
[407715564,1772699459832,-194.2003743,0.00046475,120]
[407715565,1772699459841,-194.2003743,0.00046475,120]
[407715566,1772699459851,-194.2003743,0.00046475,120]
[407715567,1772699459860,-194.2003743,0.00046475,120]
[407715568,1772699459869,-194.2003743,0.00046475,120]
[407715569,1772699459881,-194.2003743,0.00046475,120]
[407715570,1772699459890,-194.2003743,0.00046475,120]
[407715571,1772699459899,-194.2003743,0.00046475,120]
[407715572,1772699459908,-194.2003743,0.00046475,120]
[407715573,1772699459917,-194.2003743,0.00046475,120]
[407715574,1772699459926,-194.2003743,0.00046475,120]
[407715575,1772699459935,-194.2003743,0.00046475,120]
[407715576,1772699459944,-194.2003743,0.00046475,120]
[407715577,1772699459955,-194.2003743,0.00046475,120]
[407715578,1772699459964,-194.2003743,0.00046475,120]
[407715579,1772699459973,-194.2003743,0.00046475,120]
[407715580,1772699459982,-194.2,0.00046475,120]
[407715581,1772699459992,-151.23181514,0.00046475,120]
[407715582,1772699460001,-151.23181514,0.00046475,120]
[407715583,1772699460010,-151.23181514,0.00046475,120]
[407715584,1772699460020,-151.23181514,0.00046475,120]
[407715585,1772699460029,-151.23181514,0.00046475,120]
[407715586,1772699460039,-151.23,0.00046475,120]
[407715587,1772699460049,-500.0,0.00046492,120]
[407715588,1772699460059,-1000.0,0.00046495,14]
[407715589,1772699460070,-150.0,0.00046495,120]
[407715590,1772699460080,-70165.05226085,0.000465,120]
[407715591,1772699460089,-209.43,0.000465,102]
[407715592,1772699460099,-150.0,0.000465,33]
[407715593,1772699460108,-150.0,0.000465,33]
[407715594,1772699460117,-241.65,0.000465,102]
[407715595,1772699460126,-150.0,0.000465,120]
[407715596,1772699460135,-151.0,0.000465,120]
[407715597,1772699460145,-151.0,0.000465,120]
[407715598,1772699460155,-151.0,0.000465,120]
[407715599,1772699460164,-274.246192,0.000465,120]
[407715600,1772699460174,-151.0,0.000465,120]
[407715601,1772699460183,-151.0,0.000465,120]
[407715602,1772699460192,-151.0,0.000465,120]
[407715603,1772699460201,-151.0,0.000465,120]
[407715604,1772699460210,-151.0,0.000465,120]
[407715605,1772699460219,-151.0,0.000465,120]
[407715606,1772699460228,-151.0,0.000465,120]
[407715607,1772699460237,-216.263482,0.000465,120]
[407715608,1772699460247,-155.718846,0.000465,120]
[407715609,1772699460256,-155.718846,0.000465,120]
[407715610,1772699460267,-155.718846,0.000465,120]
[407715611,1772699460276,-155.718846,0.000465,120]
[407715612,1772699460285,-967.439167,0.000465,120]
[407715613,1772699460294,-967.439167,0.000465,120]
[407715614,1772699460303,-992.845494,0.000465,60]
[407715615,1772699460313,-967.439167,0.000465,120]
[407715616,1772699460322,-992.845494,0.000465,60]
[407715617,1772699460332,-967.439167,0.000465,120]
[407715618,1772699460341,-992.845494,0.000465,60]
[407715619,1772699460350,-992.845494,0.000465,60]
[407715620,1772699460359,-151.0,0.000465,2]
[407715621,1772699460368,-883.233165,0.000465,120]
[407715622,1772699460377,-501.173956,0.000465,51]
[407715623,1772699460387,-883.233165,0.000465,120]
[407715624,1772699460396,-883.233165,0.000465,120]
[407715625,1772699460405,-602.683491,0.000465,120]
[407715626,1772699460414,-883.233165,0.000465,120]
[407715627,1772699460423,-602.683491,0.000465,120]
[407715628,1772699460432,-602.683491,0.000465,120]
[407715629,1772699460441,-602.683491,0.000465,120]
[407715630,1772699460450,-151.0,0.000465,30]
[407715631,1772699460459,-151.0,0.000465,30]
[407715632,1772699460468,-151.0,0.000465,30]
[407715633,1772699460478,-151.0,0.000465,30]
[407715634,1772699460487,-503.068296,0.000465,7]
[407715635,1772699460496,-503.068296,0.000465,7]
[407715636,1772699460505,-463.564965,0.000465,120]
[407715637,1772699460514,-503.068296,0.000465,7]
[407715638,1772699460523,-463.564965,0.000465,120]
[407715639,1772699460533,-503.068296,0.000465,7]
[407715640,1772699460542,-463.564965,0.000465,120]
[407715641,1772699460551,-151.0,0.000465,120]
[407715642,1772699460560,-463.564965,0.000465,120]
[407715643,1772699460569,-151.0,0.000465,120]
[407715644,1772699460578,-151.0,0.000465,120]
[407715645,1772699460588,-151.0,0.000465,120]
[407715646,1772699460598,-151.0,0.000465,120]
[407715647,1772699460607,-151.0,0.000465,120]
[407715648,1772699460616,-201.299815,0.000465,120]
[407715649,1772699460625,-201.299815,0.000465,120]
[407715650,1772699460634,-201.299815,0.000465,120]
[407715651,1772699460644,-255.421433,0.000465,120]
[407715652,1772699460661,-201.299815,0.000465,120]
[407715653,1772699460673,-255.421433,0.000465,120]
[407715654,1772699460683,-151.0,0.000465,120]
[407715655,1772699460693,-255.421433,0.000465,120]
[407715656,1772699460703,-255.421433,0.000465,120]
[407715657,1772699460713,-151.0,0.000465,120]
[407715658,1772699460722,-151.0,0.000465,28]
[407715659,1772699460732,-151.0,0.000465,28]
[407715660,1772699460741,-151.0,0.000465,28]
[407715661,1772699460751,-151.0,0.000465,120]
[407715662,1772699460760,-151.0,0.000465,120]
[407715663,1772699460769,-151.0,0.000465,120]
[407715664,1772699460780,-151.0,0.000465,120]
[407715665,1772699460790,-166.673279,0.000465,120]
[407715666,1772699460800,-166.673279,0.000465,120]
[407715667,1772699460809,-166.673279,0.000465,120]
[407715668,1772699460819,-166.673279,0.000465,120]
[407715669,1772699460829,-339.533589,0.000465,120]
[407715670,1772699460839,-339.533589,0.000465,120]
[407715671,1772699460848,-339.533589,0.000465,120]
[407715672,1772699460857,-339.533589,0.000465,120]
[407715673,1772699460867,-151.0,0.000465,120]
[407715674,1772699460877,-151.0,0.000465,120]
[407715675,1772699460889,-284.460215,0.000465,120]
[407715676,1772699460899,-284.460215,0.000465,120]
[407715677,1772699460908,-151.0,0.000465,120]
[407715678,1772699460919,-151.0,0.000465,120]
[407715679,1772699460929,-435.511801,0.000465,120]
[407715680,1772699460938,-151.0,0.000465,120]
[407715681,1772699460948,-151.0,0.000465,120]
[407715682,1772699460958,-435.511801,0.000465,120]
[407715683,1772699460967,-153.842568,0.000465,120]
[407715684,1772699460976,-151.0,0.000465,120]
[407715685,1772699460986,-284.460215,0.000465,120]
[407715686,1772699460995,-213.941419,0.000465,120]
[407715687,1772699461005,-435.511801,0.000465,120]
[407715688,1772699461014,-284.460215,0.000465,120]
[407715689,1772699461024,-435.511801,0.000465,120]
[407715690,1772699461033,-694.262533,0.000465,15]
[407715691,1772699461046,-506.719035,0.000465,120]
[407715692,1772699461056,-151.0,0.000465,120]
[407715693,1772699461065,-694.262533,0.000465,15]
[407715694,1772699461075,-506.719035,0.000465,120]
[407715695,1772699461085,-237.152,0.000465,120]
[407715696,1772699461094,-694.262533,0.000465,15]
[407715697,1772699461104,-694.262533,0.000465,15]
[407715698,1772699461114,-151.0,0.000465,120]
[407715699,1772699461125,-151.0,0.000465,120]
[407715700,1772699461134,-151.0,0.000465,120]
[407715701,1772699461144,-151.0,0.000465,120]
[407715702,1772699461154,-506.719035,0.000465,120]
[407715703,1772699461163,-198.48825868,0.000465,120]
[407715704,1772699461174,-873.374116,0.000465,120]
[407715705,1772699461184,-506.719035,0.000465,120]
[407715706,1772699461194,-873.374116,0.000465,120]
[407715707,1772699461204,-873.374116,0.000465,120]
[407715708,1772699461218,-151.0,0.000465,120]
[407715709,1772699461228,-873.374116,0.000465,120]
[407715710,1772699461238,-151.0,0.000465,120]
[407715711,1772699461249,-151.0,0.000465,120]
[407715712,1772699461259,-160.665771,0.000465,120]
[407715713,1772699461268,-151.0,0.000465,120]
[407715714,1772699461278,-151.0,0.000465,120]
[407715715,1772699461288,-1164.768447,0.000465,120]
[407715716,1772699461298,-1164.768447,0.000465,120]
[407715717,1772699461308,-1164.768447,0.000465,120]
[407715718,1772699461318,-214.200025,0.000465,120]
[407715719,1772699461327,-1164.768447,0.000465,120]
[407715720,1772699461337,-214.200025,0.000465,120]
[407715721,1772699461347,-151.0,0.000465,120]
[407715722,1772699461357,-151.0,0.000465,120]
[407715723,1772699461367,-214.200025,0.000465,120]
[407715724,1772699461376,-193.979016,0.000465,120]
[407715725,1772699461386,-214.200025,0.000465,120]
[407715726,1772699461396,-151.0,0.000465,60]
[407715727,1772699461406,-151.0,0.000465,30]
[407715728,1772699461416,-151.0,0.000465,120]
[407715729,1772699461425,-250.000009,0.000465,120]
[407715730,1772699461435,-151.0,0.000465,60]
[407715731,1772699461445,-151.0,0.000465,120]
[407715732,1772699461455,-151.0,0.000465,120]
[407715733,1772699461464,-151.0,0.000465,120]
[407715734,1772699461474,-151.0,0.000465,120]
[407715735,1772699461484,-151.0,0.000465,120]
[407715736,1772699461494,-151.0,0.000465,120]
[407715737,1772699461504,-277.927594,0.000465,14]
[407715738,1772699461514,-277.927594,0.000465,14]
[407715739,1772699461523,-292.515889,0.000465,120]
[407715740,1772699461533,-277.927594,0.000465,14]
[407715741,1772699461544,-151.0,0.000465,120]
[407715742,1772699461553,-277.927594,0.000465,14]
[407715743,1772699461563,-292.515889,0.000465,120]
[407715744,1772699461573,-1006.737687,0.000465,120]
[407715745,1772699461583,-151.0,0.000465,120]
[407715746,1772699461593,-292.515889,0.000465,120]
[407715747,1772699461602,-151.0,0.000465,120]
[407715748,1772699461612,-1006.737687,0.000465,120]
[407715749,1772699461621,-219.747409,0.000465,120]
[407715750,1772699461631,-1006.737687,0.000465,120]
[407715751,1772699461640,-292.515889,0.000465,120]
[407715752,1772699461907,-247.092144,0.000465,120]
[407715753,1772699461919,-1006.737687,0.000465,120]
[407715754,1772699461929,-247.092144,0.000465,120]
[407715755,1772699461938,-247.092144,0.000465,120]
[407715756,1772699461948,-247.092144,0.000465,120]
[407715757,1772699461958,-1229.313375,0.000465,120]
[407715758,1772699461967,-1229.313375,0.000465,120]
[407715759,1772699461977,-1229.313375,0.000465,120]
[407715760,1772699461987,-1229.313375,0.000465,120]
[407715761,1772699461996,-500.0,0.000465,120]
[407715762,1772699462006,-352.137721,0.000465,120]
[407715763,1772699462016,-352.137721,0.000465,120]
[407715764,1772699462026,-352.137721,0.000465,120]
[407715765,1772699462035,-352.137721,0.000465,120]
[407715766,1772699462044,-1000.0,0.00046506,14]
[407715767,1772699462054,-1042.4,0.00046516,120]
[407715768,1772699462063,-1000.0,0.00046521,14]
[407715769,1772699462072,-150.0,0.00046555,14]
[407715770,1772699462082,-160.13,0.00046561,120]
[407715771,1772699462091,-1000.0,0.00046562,14]
[407715772,1772699462101,-611.68679181,0.00046565,7]
[407715773,1772699462110,-1000.0,0.0004657,14]
[407715774,1772699462119,-151.0,0.00046572,120]
[407715775,1772699462128,-151.0,0.00046572,120]
[407715776,1772699462138,-151.0,0.00046572,120]
[407715777,1772699462147,-151.0,0.00046572,120]
[407715778,1772699462156,-151.0,0.00046572,120]
[407715779,1772699462165,-151.0,0.00046572,120]
[407715780,1772699462175,-185.49705298,0.00046572,120]
[407715781,1772699462184,-500.0,0.00046573,2]
[407715782,1772699462193,-151.0,0.00046574,120]
[407715783,1772699462202,-500.0,0.00046574,120]
[407715784,1772699462212,-500.0,0.00046574,120]
[407715785,1772699462222,-500.0,0.00046574,120]
[407715786,1772699462231,-500.0,0.00046574,120]
[407715787,1772699462241,-279.9073084,0.00046574,120]
[407715788,1772699462250,-151.0,0.00046574,120]
[407715789,1772699462259,-291.52267,0.00046574,120]
[407715790,1772699462269,-151.0,0.00046574,120]
[407715791,1772699462278,-151.0,0.00046574,120]
[407715792,1772699462288,-151.0,0.00046574,2]
[407715793,1772699462297,-151.0,0.00046574,2]
[407715794,1772699462307,-151.0,0.00046574,2]
[407715795,1772699462316,-151.0,0.00046574,120]
[407715796,1772699462326,-151.0,0.00046574,120]
[407715797,1772699462336,-151.0,0.00046574,120]
[407715798,1772699462346,-500.0,0.00046574,120]
[407715799,1772699462355,-562.75,0.00046574,120]
[407715800,1772699462365,-500.0,0.00046574,120]
[407715801,1772699462375,-504.08967444,0.00046574,120]
[407715802,1772699462385,-500.0,0.00046574,2]
[407715803,1772699462394,-500.0,0.00046574,2]